bitfinex/quotes_SOLUSD_20220128
["timestamp","ask_amount","ask_price","bid_price","bid_amount"]
[1643337920027,46.9416,90.579,90.478,6.0]
[1643337920225,3.05019668,90.578,90.478,6.0]
[1643337920425,3.05019668,90.578,90.48,19.27]
[1643337920624,3.05358098,90.587,90.49,6.0]
[1643337920836,0.35,90.63,90.501,65.0]
[1643337921029,3.04946791,90.608,90.511,6.0]
[1643337921232,4.57303327,90.664,90.511,6.0]
[1643337921426,4.57303327,90.664,90.52,13.27]
[1643337921626,4.57303327,90.685,90.53,6.0]
[1643337921832,3.04809647,90.671,90.55,165.92]
[1643337922029,2.4152792,90.672,90.56,19.27]
[1643337922231,102.566,90.72,90.57,165.92]
[1643337922426,102.566,90.72,90.58,179.19]
[1643337922626,146.33454299,90.726,90.59,185.19]
[1643337922828,111.2,90.752,90.6,179.19]
[1643337923025,111.2,90.752,90.61,6.0]
[1643337923226,111.2,90.752,90.62,29.8186]
[1643337923227,16.551,90.75,90.62,29.8186]
[1643337923427,16.551,90.75,90.62,13.27]
[1643337923726,30.08086398,90.749,90.63,6.0]
[1643337923931,30.08086398,90.749,90.64,13.27]
[1643337924227,6.0,90.739,90.651,40.68193311]
[1643337924627,2.95669142,90.778,90.652,0.25]
[1643337924828,1125.45397752,91.637,90.652,0.25]
[1643337924829,4.57303327,90.816,90.67,165.92]
[1643337925032,4.57303327,90.816,90.69,165.92]
[1643337925227,76.9676,90.849,90.7,13.27]
[1643337925629,32.74567022,90.848,90.711,37.49715127]
[1643337925829,66.82,90.847,90.596,0.25]
[1643337926028,16.5388,90.81,90.654,6.0]
[1643337926228,0.1,90.809,90.654,6.0]
[1643337926428,0.1,90.829,90.67,165.92]
[1643337926634,0.1,90.847,90.68,185.19]
[1643337926830,0.1,90.847,90.69,13.27]
[1643337927034,29.8053,90.84,90.69,13.27]
[1643337927230,0.1,90.839,90.69,13.27]
[1643337927429,19.04516329,90.839,90.69,13.27]
[1643337927629,111.3,90.838,90.69,13.27]
[1643337927830,8.2552454,90.828,90.681,48.01143147]
[1643337928129,13.27,90.82,90.681,48.01143147]
[1643337928329,16.5461,90.8,90.61,221.073]
[1643337928629,6.0,90.79,90.623,22.28637516]
[1643337928828,13.27,90.78,90.623,22.28637516]
[1643337929028,6.0,90.77,90.623,22.28637516]
[1643337929229,6.0,90.77,90.624,2.04118182]
[1643337929429,55.1731,90.76,90.624,46.31327942]
[1643337929633,9.80379027,90.749,90.625,22.28637516]
[1643337929828,9.80379027,90.749,90.625,24.57755698]
[1643337929829,0.25,90.748,90.625,24.57755698]
[1643337930030,6.0,90.739,90.625,24.57755698]
[1643337930228,6.0,90.739,90.626,22.28637516]
[1643337930429,6.0,90.739,90.64,13.27]
[1643337930637,6.0,90.739,90.641,33.99849073]
[1643337930831,6.0,90.739,90.65,6.0]
[1643337931130,6.0,90.739,90.651,6.0]
[1643337931329,31.1056214,90.729,90.641,33.99849073]
[1643337931729,0.25,90.728,90.641,33.99849073]
[1643337932429,16.5552,90.72,90.641,33.99849073]
[1643337932831,0.25,90.719,90.641,33.99849073]
[1643337933432,6.25,90.719,90.641,33.99849073]
[1643337933632,111.2,90.718,90.614,24.8049]
[1643337933832,31.1056214,90.729,90.615,0.25]
[1643337934032,0.25,90.717,90.62,6.0]
[1643337934232,0.25,90.717,90.62,19.27]
[1643337934432,16.5572,90.71,90.625,6.0]
[1643337934633,10.05379027,90.709,90.63,6.0]
[1643337935034,10.05379027,90.709,90.626,48.6860095]
[1643337935636,16.5592,90.7,90.626,48.6860095]
[1643337936035,16.5592,90.7,90.627,0.25]
[1643337936436,9.80379027,90.709,90.627,0.25]
[1643337936636,6.0,90.739,90.64,13.27]
[1643337936838,111.2,90.772,90.65,6.0]
[1643337937039,0.1,90.771,90.66,13.27]
[1643337937237,0.35,90.771,90.66,13.27]
[1643337937441,0.35,90.771,90.67,6.0]
[1643337937638,39.5853852,90.771,90.671,29.58457883]
[1643337937838,0.1,90.77,90.671,31.87576065]
[1643337938038,0.1,90.77,90.681,6.0]
[1643337938238,0.1,90.77,90.671,29.83457883]
[1643337938239,16.5473,90.76,90.671,29.83457883]
[1643337938640,0.25,90.759,90.672,2.04118182]
[1643337938937,0.25,90.759,90.673,0.25]
[1643337939338,0.25,90.759,90.674,2.04118182]
[1643337939741,0.25,90.759,90.675,0.25]
[1643337940139,0.25,90.759,90.676,2.04118182]
[1643337940341,0.25,90.759,90.681,6.0]
[1643337940540,0.25,90.759,90.675,0.25]
[1643337941361,16.5497,90.75,90.675,0.25]
[1643337941562,1.67402647,90.749,90.672,0.25]
[1643337941762,1.92402647,90.749,90.671,29.58457883]
[1643337941962,1.92402647,90.749,90.644,2.04118182]
[1643337941963,1.92402647,90.749,90.65,13.27]
[1643337942566,1.92402647,90.749,90.651,2.04118182]
[1643337942969,1.92402647,90.749,90.652,48.77548775]
[1643337943163,1.92402647,90.749,90.652,49.02548775]
[1643337943962,1.92402647,90.749,90.653,2.04118182]
[1643337944163,0.25,90.749,90.653,2.04118182]
[1643337944364,0.25,90.759,90.654,0.25]
[1643337944564,0.25,90.759,90.663,6.0]
[1643337944765,0.35,90.769,90.67,13.27]
[1643337945167,0.25,90.769,90.664,2.04118182]
[1643337945365,16.5501,90.75,90.62,13.27]
[1643337945665,6.0,90.74,90.62,13.27]
[1643337945866,0.25,90.739,90.62,13.27]
[1643337946069,6.25,90.739,90.62,13.27]
[1643337946265,6.25,90.739,90.621,0.25]
[1643337946465,16.5533,90.73,90.621,0.25]
[1643337946668,16.5533,90.73,90.62,13.27]
[1643337946865,2.95669142,90.738,90.539,49.4399]
[1643337946866,55.2099,90.7,90.539,49.4399]
[1643337947066,6.39260191,90.699,90.594,44.21740674]
[1643337947269,6.64260191,90.699,90.6,13.27]
[1643337948269,16.563,90.69,90.6,13.27]
[1643337948670,0.25,90.689,90.6,13.27]
[1643337948870,0.25,90.689,90.601,0.25]
[1643337949271,16.563,90.69,90.601,0.25]
[1643337949471,6.39260191,90.699,90.602,2.04118182]
[1643337949675,6.39260191,90.699,90.602,21.48055698]
[1643337949872,78.2432,90.737,90.613,34.05318159]
[1643337950072,78.2432,90.737,90.62,13.27]
[1643337950275,78.2432,90.737,90.621,0.25]
[1643337950678,16.5527,90.73,90.621,2.29118182]
[1643337950875,28.9092908,90.729,90.622,2.04118182]
[1643337951275,28.6592908,90.729,90.623,0.25]
[1643337951774,28.6592908,90.729,90.624,2.04118182]
[1643337952179,16.5554,90.72,90.625,0.25]
[1643337952374,16.5554,90.72,90.624,2.04118182]
[1643337952574,16.5554,90.72,90.62,13.27]
[1643337952778,0.25,90.719,90.63,6.0]
[1643337952978,0.25,90.719,90.64,13.27]
[1643337953776,111.45,90.719,90.641,0.25]
[1643337954176,111.2,90.719,90.641,0.25]
[1643337954376,0.25,90.718,90.641,0.25]
[1643337954777,0.25,90.718,90.64,13.27]
[1643337955478,111.2,90.719,90.641,0.25]
[1643337955678,111.2,90.719,90.64,13.27]
[1643337956279,16.5576,90.71,90.64,13.27]
[1643337956478,12.25012087,90.709,90.631,46.29695887]
[1643337956679,111.2,90.708,90.631,40.29695887]
[1643337956879,111.45,90.708,90.631,40.29695887]
[1643337957479,16.5591,90.7,90.631,40.29695887]
[1643337957884,111.2,90.699,90.631,40.29695887]
[1643337959082,111.2,90.699,90.632,0.25]
[1643337959282,0.25,90.698,90.631,40.29695887]
[1643337960983,111.2,90.699,90.631,40.29695887]
[1643337961186,111.2,90.699,90.632,0.25]
[1643337961582,16.558,90.7,90.64,39.024183]
[1643337961783,16.5544,90.72,90.641,0.25]
[1643337962083,7.43268396,90.782,90.641,0.25]
[1643337962084,111.2,90.735,90.65,13.27]
[1643337962287,111.2,90.735,90.651,0.25]
[1643337962785,111.2,90.733,90.651,38.22362946]
[1643337962984,111.2,90.733,90.651,37.97362946]
[1643337963188,16.5537,90.73,90.65,13.27]
[1643337963385,0.25,90.732,90.64,39.024183]
[1643337963386,111.45,90.729,90.64,39.024183]
[1643337963785,6.13118132,90.728,90.64,39.024183]
[1643337964189,123.13052097,90.709,90.641,47.07467306]
[1643337964388,11.93052097,90.709,90.642,0.25]
[1643337964992,0.25,90.727,90.642,0.25]
[1643337965390,4.57303327,90.732,90.641,47.07467306]
[1643337965590,16.5534,90.73,90.642,0.25]
[1643337965795,111.2,90.729,90.641,47.07467306]
[1643337965993,141.11009173,90.729,90.641,47.07467306]
[1643337966792,111.2,90.719,90.641,47.07467306]
[1643337967192,0.25,90.718,90.641,47.07467306]
[1643337968417,16.5586,90.7,90.641,47.07467306]
[1643337968615,10.99931994,90.699,90.641,47.07467306]
[1643337968815,111.2,90.698,90.641,47.07467306]
[1643337970214,0.25,90.697,90.641,47.07467306]
[1643337971216,0.25,90.697,90.64,39.024183]
[1643337972815,111.2,90.689,90.64,39.024183]
[1643337973015,111.2,90.689,90.64,11.51405228]
[1643337973218,0.25,90.688,90.64,11.51405228]
[1643337973627,3.24163311,90.688,90.64,1.77298241]
[1643337974417,16.5643,90.68,90.64,1.77298241]
[1643337974820,111.45,90.679,90.64,1.77298241]
[1643337975721,111.2,90.679,90.64,1.77298241]
[1643337976722,110.7,90.679,90.64,1.77298241]
[1643337977924,23.0667,90.719,90.641,2.29118182]
[1643337978422,23.0667,90.719,90.642,2.04118182]
[1643337978823,2.89233695,90.718,90.643,0.25]
[1643337979023,2.89233695,90.718,90.64,15.04298241]
[1643337979228,2.89233695,90.718,90.641,0.25]
[1643337979626,2.89233695,90.718,90.64,15.04298241]
[1643337980026,114.09233695,90.718,90.64,1.77298241]
[1643337980225,0.25,90.717,90.64,1.77298241]
[1643337980626,6.38753944,90.717,90.64,1.77298241]
[1643337981428,16.557,90.71,90.64,1.77298241]
[1643337981627,111.2,90.709,90.64,1.77298241]
[1643337981829,55.2061,90.7,90.64,1.77298241]
[1643337982228,0.25,90.699,90.64,1.77298241]
[1643337982428,16.5619,90.69,90.64,1.77298241]
[1643337982831,1.01587413,90.689,90.64,1.77298241]
[1643337983631,111.2,90.679,90.6,13.27]
[1643337983833,16.5655,90.66,90.523,111.9]
[1643337984032,16.5655,90.66,90.557,2.04118182]
[1643337984229,0.25,90.659,90.557,2.04118182]
[1643337984433,1.36935454,90.659,90.557,2.04118182]
[1643337984631,1.36935454,90.659,90.537,2.04118182]
[1643337984829,1.36935454,90.659,90.53,13.27]
[1643337984830,2.95669142,90.658,90.53,13.27]
[1643337985031,6.0,90.648,90.53,13.27]
[1643337985230,16.5687,90.64,90.541,23.6913]
[1643337985630,111.2,90.629,90.541,66.8982749]
[1643337985932,0.25,90.628,90.541,66.8982749]
[1643337986131,6.0,90.619,90.541,66.8982749]
[1643337986334,0.25,90.618,90.53,13.27]
[1643337986531,0.25,90.618,90.54,6.0]
[1643337986732,0.25,90.618,90.53,13.27]
[1643337987133,0.25,90.618,90.54,6.0]
[1643337987332,16.5755,90.61,90.54,6.0]
[1643337987733,0.25,90.609,90.531,35.69877705]
[1643337988535,111.45,90.609,90.531,35.69877705]
[1643337990334,111.2,90.609,90.531,35.69877705]
[1643337990536,16.5755,90.61,90.532,2.04118182]
[1643337990736,1.11935454,90.618,90.532,2.29118182]
[1643337991139,1.11935454,90.618,90.533,2.04118182]
[1643337991439,68.5054,90.66,90.534,0.25]
[1643337991638,6.0,90.649,90.534,0.25]
[1643337991935,0.25,90.648,90.535,2.04118182]
[1643337992336,16.569,90.64,90.536,0.25]
[1643337992537,16.569,90.64,90.55,13.27]
[1643337992839,111.45,90.639,90.551,40.50589581]
[1643337993238,111.45,90.639,90.552,0.25]
[1643337993639,16.5723,90.63,90.551,40.50589581]
[1643337994065,0.25,90.629,90.551,40.50589581]
[1643337994263,16.5723,90.63,90.551,40.50589581]
[1643337994264,1.83485178,90.648,90.552,2.29118182]
[1643337994664,0.25,90.647,90.553,2.04118182]
[1643337994864,0.25,90.647,90.554,0.25]
[1643337995062,0.25,90.647,90.563,6.0]
[1643337995265,0.25,90.647,90.571,35.8277576]
[1643337995464,1.83485178,90.648,90.572,0.25]
[1643337995864,0.25,90.647,90.572,2.04118182]
[1643337996066,0.25,90.647,90.57,13.27]
[1643337996266,0.25,90.647,90.55,13.27]
[1643337996670,2.95669142,90.683,90.55,13.27]
[1643337996671,2.95669142,90.683,90.551,0.25]
[1643337996867,13.27,90.71,90.56,6.0]
[1643337997068,4.57303327,90.715,90.57,13.27]
[1643337997268,79.95469142,90.709,90.571,0.25]
[1643337997466,2.95669142,90.697,90.58,6.0]
[1643337997668,1.45213234,90.696,90.58,19.27]
[1643337997868,0.25,90.695,90.58,19.27]
[1643337998066,16.5656,90.67,90.58,19.27]
[1643337998266,0.68309633,90.669,90.58,19.27]
[1643337999271,0.68309633,90.669,90.589,6.0]
[1643337999472,16.5677,90.65,90.58,19.27]
[1643337999869,16.5677,90.65,90.58,13.27]
[1643338000272,1.70213234,90.649,90.58,13.27]
[1643338000672,112.90213234,90.649,90.58,13.27]
[1643338001474,111.2,90.639,90.58,13.27]
[1643338001877,0.25,90.638,90.58,13.27]
[1643338002077,0.25,90.638,90.521,15.38885082]
[1643338002274,0.25,90.638,90.54,13.27]
[1643338002474,6.0,90.629,90.541,6.0]
[1643338002674,6.0,90.627,90.53,13.27]
[1643338002874,6.0,90.627,90.456,16.0974948]
[1643338002875,0.25,90.626,90.479,24.7349]
[1643338003076,6.0,90.618,90.48,52.8090674]
[1643338003274,0.25,90.617,90.48,52.8090674]
[1643338003474,6.0,90.616,90.48,52.8090674]
[1643338003676,111.2,90.609,90.48,52.8090674]
[1643338003874,0.25,90.608,90.48,52.8090674]
[1643338004074,6.0,90.599,90.49,6.0]
[1643338004274,6.0,90.599,90.5,13.27]
[1643338004478,6.0,90.599,90.501,49.4993175]
[1643338004676,6.0,90.6,90.501,49.4993175]
[1643338004874,6.0,90.6,90.501,51.53776221]
[1643338005075,6.0,90.591,90.502,0.25]
[1643338005675,6.0,90.59,90.502,0.25]
[1643338006076,70.4813,90.626,90.503,2.03844471]
[1643338006276,13.27,90.67,90.511,6.0]
[1643338006476,16.5693,90.64,90.52,29.8369]
[1643338006676,16.5693,90.64,90.53,13.27]
[1643338006876,16.5693,90.64,90.531,0.25]
[1643338007080,16.5693,90.64,90.531,2.28844471]
[1643338007477,16.5693,90.64,90.531,0.25]
[1643338007878,111.2,90.639,90.531,0.25]
[1643338008077,16.574,90.62,90.531,0.25]
[1643338008278,0.25,90.619,90.531,0.25]
[1643338010383,16.574,90.62,90.531,0.25]
[1643338011888,0.25,90.619,90.531,0.25]
[1643338012486,0.25,90.619,90.541,40.5689875]
[1643338012690,111.45,90.619,90.55,13.27]
[1643338014089,16.576,90.61,90.55,13.27]
[1643338014289,111.45,90.609,90.55,13.27]
[1643338016189,16.5779,90.6,90.55,13.27]
[1643338016390,111.45,90.599,90.55,13.27]
[1643338016992,0.25,90.599,90.551,44.14726796]
[1643338017591,6.0,90.62,90.551,44.14726796]
[1643338017792,111.2,90.631,90.551,44.14726796]
[1643338018391,111.2,90.631,90.552,0.25]
[1643338018793,1.53241898,90.618,90.552,0.25]
[1643338018991,1.53241898,90.617,90.552,0.25]
[1643338019397,0.25,90.616,90.552,0.25]
[1643338020594,1.78241898,90.616,90.552,0.25]
[1643338020795,0.25,90.615,90.552,0.25]
[1643338020995,1.53241898,90.617,90.552,0.25]
[1643338021196,0.25,90.616,90.552,0.25]
[1643338022795,0.25,90.616,90.53,13.27]
[1643338022993,1.78241898,90.616,90.53,13.27]
[1643338023194,1.53241898,90.609,90.53,13.27]
[1643338023394,1.78241898,90.608,90.53,13.27]
[1643338023595,0.25,90.608,90.53,13.27]
[1643338024093,1.53241898,90.602,90.531,43.08313626]
[1643338024297,1.53241898,90.597,90.5,13.27]
[1643338024494,111.2,90.591,90.5,13.27]
[1643338024897,111.2,90.58,90.5,13.27]
[1643338025097,111.2,90.569,90.5,13.27]
[1643338025296,0.25,90.568,90.501,46.54201848]
[1643338025496,0.25,90.568,90.501,46.79201848]
[1643338025697,111.2,90.578,90.501,46.79201848]
[1643338025897,1.53241898,90.594,90.502,111.2]
[1643338026197,1.53241898,90.62,90.512,6.0]
[1643338026399,1.53241898,90.624,90.52,13.27]
[1643338026697,1.53241898,90.624,90.53,6.0]
[1643338026898,1.53241898,90.624,90.541,36.26054084]
[1643338027098,111.2,90.628,90.541,36.26054084]
[1643338027099,1.53241898,90.625,90.541,36.26054084]
[1643338027301,1.53241898,90.617,90.542,0.25]
[1643338027522,1.53241898,90.619,90.542,0.25]
[1643338027701,0.25,90.616,90.542,0.25]
[1643338028902,1.78241898,90.622,90.542,0.25]
[1643338029200,1.53241898,90.62,90.542,0.25]
[1643338029699,1.53241898,90.62,90.543,2.03844471]
[1643338029902,1.53241898,90.627,90.544,0.25]
[1643338030101,112.73241898,90.628,90.544,0.25]
[1643338030304,112.73241898,90.628,90.545,2.03844471]
[1643338030500,1.53241898,90.626,90.544,0.25]
[1643338030700,16.5727,90.63,90.541,36.26054084]
[1643338030701,1.53241898,90.629,90.541,36.26054084]
[1643338030903,1.53241898,90.627,90.541,36.26054084]
[1643338031304,1.78241898,90.626,90.541,36.26054084]
[1643338031502,1.53241898,90.625,90.541,53.07804084]
[1643338031903,1.53241898,90.622,90.541,53.07804084]
[1643338032106,1.53241898,90.62,90.542,0.25]
[1643338032304,1.78241898,90.619,90.542,0.25]
[1643338033803,1.53241898,90.619,90.543,2.03844471]
[1643338034003,1.53241898,90.628,90.55,15.92]
[1643338034404,1.53241898,90.63,90.551,0.25]
[1643338034605,1.53241898,90.637,90.56,6.0]
[1643338034806,1.53241898,90.636,90.561,38.96925816]
[1643338035411,1.53241898,90.637,90.561,38.96925816]
[1643338035706,1.53241898,90.638,90.561,38.96925816]
[1643338035905,16.5687,90.65,90.561,38.96925816]
[1643338035906,1.53241898,90.639,90.561,38.96925816]
[1643338036106,1.53241898,90.641,90.561,38.96925816]
[1643338036307,76.6831,90.665,90.561,38.96925816]
[1643338036308,1.53241898,90.639,90.561,38.96925816]
[1643338036506,1.53241898,90.64,90.561,38.96925816]
[1643338037308,1.53241898,90.641,90.561,38.96925816]
[1643338037709,0.25,90.64,90.561,38.96925816]
[1643338038911,3.06052693,90.669,90.561,38.96925816]
[1643338038912,3.06052693,90.671,90.562,2.03844471]
[1643338039113,3.06052693,90.671,90.572,6.0]
[1643338039313,3.06052693,90.688,90.58,15.92]
[1643338039518,27.76182693,90.692,90.59,6.0]
[1643338039714,27.76182693,90.692,90.59,21.92]
[1643338039715,3.06406105,90.687,90.59,21.92]
[1643338039915,3.06406105,90.691,90.591,6.25]
[1643338040116,3.06052693,90.697,90.6,6.0]
[1643338040318,0.25,90.696,90.601,42.95568324]
[1643338040523,3.06406105,90.695,90.602,6.0]
[1643338040716,6.12458798,90.695,90.611,6.0]
[1643338040918,0.25,90.694,90.611,6.0]
[1643338041218,3.06406105,90.693,90.612,0.25]
[1643338041417,6.02075247,90.693,90.612,0.25]
[1643338041616,117.47075247,90.692,90.612,0.25]
[1643338041916,0.25,90.691,90.612,0.25]
[1643338042317,0.25,90.691,90.602,0.25]
[1643338042739,2.95669142,90.69,90.601,0.25]
[1643338043242,0.25,90.689,90.601,0.25]
[1643338043442,0.25,90.689,90.601,49.71729454]
[1643338043642,2.95669142,90.688,90.601,49.71729454]
[1643338043841,111.2,90.689,90.602,2.03844471]
[1643338044240,111.2,90.689,90.603,0.25]
[1643338044642,2.95669142,90.688,90.603,0.25]
[1643338045042,0.25,90.687,90.603,0.25]
[1643338045444,2.95669142,90.686,90.602,0.25]
[1643338045845,16.5632,90.68,90.601,0.25]
[1643338046041,6.0,90.67,90.601,0.25]
[1643338046242,0.25,90.669,90.601,0.25]
[1643338046542,111.2,90.668,90.6,15.92]
[1643338046941,6.0,90.658,90.6,15.92]
[1643338047342,0.25,90.657,90.6,15.92]
[1643338047942,0.25,90.657,90.601,0.25]
[1643338051854,0.25,90.657,90.6,15.92]
[1643338052053,0.25,90.657,90.535,22.5829]
[1643338052054,0.25,90.657,90.57,15.92]
[1643338052254,0.25,90.657,90.571,0.25]
[1643338052655,0.25,90.657,90.571,44.94394657]
[1643338053057,6.0,90.65,90.571,44.94394657]
[1643338053256,0.25,90.649,90.571,44.94394657]
[1643338053459,6.25,90.649,90.571,44.94394657]
[1643338053761,6.0,90.646,90.571,44.94394657]
[1643338053959,0.25,90.649,90.571,44.94394657]
[1643338054155,6.25,90.649,90.571,44.94394657]
[1643338055357,6.0,90.649,90.571,44.94394657]
[1643338055758,16.5682,90.65,90.571,44.94394657]
[1643338056362,3.06052693,90.683,90.571,44.94394657]
[1643338056660,6.0,90.673,90.572,16.6741331]
[1643338056859,16.5671,90.65,90.573,0.25]
[1643338057059,16.5671,90.65,90.571,44.94394657]
[1643338057459,16.5671,90.65,90.57,15.92]
[1643338057660,3.20669142,90.649,90.55,15.92]
[1643338057864,6.0,90.64,90.55,15.92]
[1643338058063,3.20669142,90.649,90.55,15.92]
[1643338058064,6.0,90.639,90.55,15.92]
[1643338058261,6.25,90.639,90.55,15.92]
[1643338058462,6.0,90.638,90.551,45.51257877]
[1643338058665,8.95669142,90.638,90.551,45.51257877]
[1643338058864,6.0,90.629,90.551,45.51257877]
[1643338059063,0.25,90.637,90.552,0.25]
[1643338059263,111.45,90.637,90.552,0.25]
[1643338059663,111.2,90.626,90.552,0.25]
[1643338059963,0.25,90.625,90.552,0.25]
[1643338060165,6.0,90.616,90.552,0.25]
[1643338060764,99.15388684,90.722,90.552,0.25]
[1643338060765,3.06052693,90.668,90.552,16.9241331]
[1643338060965,3.06052693,90.668,90.553,16.96859603]
[1643338061162,6.0,90.658,90.553,16.96859603]
[1643338061365,3.31495549,90.667,90.554,16.9241331]
[1643338061567,0.25,90.667,90.554,16.9241331]
[1643338061763,3.06535708,90.666,90.555,16.6741331]
[1643338061964,6.0,90.66,90.571,44.1734388]
[1643338062164,0.25,90.665,90.571,44.1734388]
[1643338062364,0.25,90.667,90.572,0.25]
[1643338062365,6.0,90.66,90.572,0.25]
[1643338062764,0.25,90.667,90.572,0.25]
[1643338063267,0.25,90.669,90.572,0.25]
[1643338064764,16.5653,90.67,90.572,111.45]
[1643338065566,3.06052693,90.683,90.573,16.6741331]
[1643338065766,0.25,90.682,90.583,111.2]
[1643338065967,6.0,90.673,90.591,111.2]
[1643338066166,6.0,90.674,90.592,42.3444973]
[1643338066367,0.25,90.672,90.593,111.2]
[1643338066769,0.25,90.672,90.594,0.25]
[1643338067367,0.25,90.688,90.594,0.25]
[1643338067570,3.06748197,90.687,90.594,0.25]
[1643338067768,0.25,90.686,90.593,0.25]
[1643338068168,3.06748602,90.685,90.593,0.25]
[1643338068368,0.25,90.684,90.593,0.25]
[1643338068890,111.2,90.669,90.593,0.25]
[1643338069091,111.2,90.669,90.591,0.25]
[1643338069293,0.25,90.668,90.591,0.25]
[1643338069893,0.25,90.668,90.591,35.46588099]
[1643338070894,111.45,90.669,90.591,35.21588099]
[1643338071093,111.45,90.669,90.59,15.92]
[1643338071294,6.0,90.659,90.55,15.92]
[1643338071493,6.0,90.657,90.55,15.92]
[1643338071694,3.06052693,90.654,90.55,15.92]
[1643338071898,6.0,90.648,90.55,15.92]
[1643338072094,3.31052693,90.653,90.55,15.92]
[1643338072095,117.2,90.643,90.551,37.65104615]
[1643338072295,0.25,90.642,90.551,37.65104615]
[1643338072694,0.25,90.642,90.552,0.25]
[1643338072893,6.25,90.642,90.552,0.25]
[1643338073095,6.0,90.633,90.552,0.25]
[1643338073399,0.25,90.632,90.552,0.25]
[1643338073593,16.5706,90.63,90.552,0.25]
[1643338073796,0.25,90.629,90.552,0.25]
[1643338073998,6.0,90.62,90.552,0.25]
[1643338074398,6.25,90.619,90.552,0.25]
[1643338075997,6.0,90.609,90.552,0.25]
[1643338076598,6.25,90.619,90.552,0.25]
[1643338076799,0.25,90.618,90.552,0.25]
[1643338078202,0.25,90.618,90.551,0.25]
[1643338078801,0.25,90.619,90.551,0.25]
[1643338079001,117.45,90.619,90.551,39.87607177]
[1643338080804,117.45,90.619,90.551,0.25]
[1643338081004,6.0,90.61,90.551,0.25]
[1643338081205,6.0,90.609,90.551,0.25]
[1643338081807,0.25,90.608,90.551,0.25]
[1643338082406,0.25,90.608,90.537,0.25]
[1643338083006,6.0,90.6,90.537,0.25]
[1643338083406,111.2,90.599,90.53,15.92]
[1643338083607,111.45,90.599,90.51,15.92]
[1643338083806,111.45,90.599,90.494,16.8556]
[1643338084006,111.2,90.588,90.494,16.8556]
[1643338084407,0.25,90.587,90.495,47.38244107]
[1643338084914,16.5831,90.57,90.495,47.38244107]
[1643338085110,111.2,90.559,90.495,47.38244107]
[1643338085309,0.25,90.558,90.495,47.38244107]
[1643338086109,0.25,90.558,90.496,0.25]
[1643338086510,0.25,90.558,90.483,0.25]
[1643338086710,0.25,90.558,90.482,16.2117]
[1643338086711,2.95669142,90.557,90.482,16.2117]
[1643338087010,6.0,90.547,90.482,16.2117]
[1643338087212,16.5886,90.54,90.482,16.2117]
[1643338087416,111.2,90.539,90.482,16.2117]
[1643338087613,111.2,90.529,90.482,16.2117]
[1643338088013,111.2,90.529,90.45,15.92]
[1643338088014,0.25,90.528,90.45,15.92]
[1643338088215,16.5917,90.52,90.45,15.92]
[1643338088417,16.5917,90.52,90.39,15.92]
[1643338088716,6.0,90.51,90.39,15.92]
[1643338088917,47.2979,90.509,90.391,40.39115773]
[1643338089117,53.5479,90.509,90.391,40.39115773]